[Event "Early-Titled-Tuesday-Blitz-January-30-2024"]
[Site "Chess.com"]
[Date "2024.01.30"]
[Round "4"]
[White "Dinamo3"]
[Black "manitodeplomo"]
[Result "1-0"]
[WhiteElo "2495"]
[BlackElo "2686"]
[TimeControl "180+1"]
[EndTime "8:41:16 PST"]
[Termination "Dinamo3 won on time"]

1. c4 {[%clk 0:03:00.9]} 1... g6 {[%clk 0:02:55]} 2. g3 {[%clk 0:02:59.8]} 2...
Bg7 {[%clk 0:02:55]} 3. Bg2 {[%clk 0:03:00.3]} 3... e5 {[%clk 0:02:55.5]} 4. Nc3
{[%clk 0:02:59.3]} 4... Ne7 {[%clk 0:02:55.6]} 5. d3 {[%clk 0:02:59.1]} 5... O-O
{[%clk 0:02:55.7]} 6. e3 {[%clk 0:02:59.6]} 6... c6 {[%clk 0:02:56]} 7. e4
{[%clk 0:02:53.9]} 7... d6 {[%clk 0:02:55]} 8. Nge2 {[%clk 0:02:54.3]} 8... Be6
{[%clk 0:02:54.6]} 9. O-O {[%clk 0:02:54.6]} 9... d5 {[%clk 0:02:48.1]} 10. exd5
{[%clk 0:02:54.9]} 10... cxd5 {[%clk 0:02:48.9]} 11. d4 {[%clk 0:02:55.6]} 11...
Nbc6 {[%clk 0:02:44.3]} 12. Bg5 {[%clk 0:02:55.7]} 12... f6 {[%clk 0:02:37.2]}
13. Be3 {[%clk 0:02:55.3]} 13... exd4 {[%clk 0:01:38.8]} 14. Nxd4 {[%clk
0:02:48.5]} 14... Nxd4 {[%clk 0:01:38.3]} 15. Bxd4 {[%clk 0:02:49]} 15... dxc4
{[%clk 0:01:37]} 16. Re1 {[%clk 0:02:35]} 16... Bf7 {[%clk 0:01:32.6]} 17. Bc5
{[%clk 0:02:26.9]} 17... Qxd1 {[%clk 0:01:20.8]} 18. Raxd1 {[%clk 0:02:25.4]}
18... Nc6 {[%clk 0:01:18.5]} 19. Bxf8 {[%clk 0:02:24.6]} 19... Bxf8 {[%clk
0:01:13.2]} 20. Rd7 {[%clk 0:02:24.5]} 20... Ne5 {[%clk 0:01:05.1]} 21. Rxb7
{[%clk 0:02:20.8]} 21... Rd8 {[%clk 0:01:02.9]} 22. Rxa7 {[%clk 0:02:07.2]}
22... Rd2 {[%clk 0:00:44.8]} 23. Ne4 {[%clk 0:02:06.5]} 23... Rxb2 {[%clk
0:00:42.3]} 24. Nxf6+ {[%clk 0:02:06.3]} 24... Kg7 {[%clk 0:00:37.8]} 25. Ne8+
{[%clk 0:02:01.5]} 25... Kg8 {[%clk 0:00:33.4]} 26. Rxe5 {[%clk 0:01:24.4]}
26... c3 {[%clk 0:00:32.3]} 27. Rc7 {[%clk 0:00:25.6]} 27... c2 {[%clk
0:00:26.8]} 28. Bf1 {[%clk 0:00:26.1]} 28... Rxa2 {[%clk 0:00:09.5]} 29. Kg2
{[%clk 0:00:23.6]} 29... Ba3 {[%clk 0:00:08.2]} 30. Nf6+ {[%clk 0:00:12]} 30...
Kg7 {[%clk 0:00:07.7]} 31. Ne8+ {[%clk 0:00:12.7]} 31... Kf8 {[%clk 0:00:07.6]}
32. Re1 {[%clk 0:00:06.4]} 32... Bxe8 {[%clk 0:00:05.4]} 33. Rc8 {[%clk
0:00:06.7]} 33... c1=Q {[%clk 0:00:05]} 34. Rcxe8+ {[%clk 0:00:06.5]} 34... Kf7
{[%clk 0:00:04.5]} 35. Rxc1 {[%clk 0:00:06.4]} 35... Kxe8 {[%clk 0:00:03.2]} 36.
Rc7 {[%clk 0:00:04.7]} 36... h5 {[%clk 0:00:01]} 37. Bb5+ {[%clk 0:00:03.9]} 1-0

[Event "Early-Titled-Tuesday-Blitz-January-30-2024"]
[Site "Chess.com"]
[Date "2024.01.30"]
[Round "4"]
[White "viktorskliarov"]
[Black "VomDingJetztHer"]
[Result "0-1"]
[WhiteElo "2667"]
[BlackElo "2451"]
[TimeControl "180+1"]
[EndTime "8:41:19 PST"]
[Termination "VomDingJetztHer won on time"]

1. e4 {[%clk 0:03:00.9]} 1... a6 {[%clk 0:02:59.2]} 2. d4 {[%clk 0:03:00.9]}
2... c6 {[%clk 0:02:59.4]} 3. Nc3 {[%clk 0:02:53.7]} 3... d5 {[%clk 0:02:59.3]}
4. e5 {[%clk 0:02:53.7]} 4... Bf5 {[%clk 0:02:57.8]} 5. Nf3 {[%clk 0:02:51.8]}
5... e6 {[%clk 0:02:54.6]} 6. Be2 {[%clk 0:02:51.8]} 6... h6 {[%clk 0:02:52.8]}
7. O-O {[%clk 0:02:51.4]} 7... Nd7 {[%clk 0:02:53]} 8. Re1 {[%clk 0:02:31.8]}
8... Ne7 {[%clk 0:02:50.4]} 9. h3 {[%clk 0:02:27.6]} 9... g5 {[%clk 0:02:46.5]}
10. g4 {[%clk 0:02:02.9]} 10... Bg6 {[%clk 0:02:44.7]} 11. Be3 {[%clk
0:01:54.1]} 11... Bg7 {[%clk 0:02:44.2]} 12. Qd2 {[%clk 0:01:41.1]} 12... Qc7
{[%clk 0:02:43.4]} 13. Nd1 {[%clk 0:01:20.5]} 13... c5 {[%clk 0:02:42.4]} 14. c3
{[%clk 0:01:16.6]} 14... Be4 {[%clk 0:02:30.7]} 15. b4 {[%clk 0:00:57.6]} 15...
c4 {[%clk 0:02:28.2]} 16. Nh2 {[%clk 0:00:35.4]} 16... O-O-O {[%clk 0:02:23.7]}
17. f3 {[%clk 0:00:33.3]} 17... Bg6 {[%clk 0:02:21.3]} 18. f4 {[%clk 0:00:32.3]}
18... gxf4 {[%clk 0:02:16.5]} 19. Bxf4 {[%clk 0:00:33.2]} 19... h5 {[%clk
0:02:15.3]} 20. g5 {[%clk 0:00:23.5]} 20... b6 {[%clk 0:01:52.7]} 21. a4 {[%clk
0:00:22.7]} 21... Kb7 {[%clk 0:01:51.7]} 22. h4 {[%clk 0:00:22]} 22... Nf5
{[%clk 0:01:50.5]} 23. Nf3 {[%clk 0:00:21.9]} 23... Bf8 {[%clk 0:01:44.2]} 24.
Nf2 {[%clk 0:00:20.9]} 24... Be7 {[%clk 0:01:42.1]} 25. Bd1 {[%clk 0:00:20.8]}
25... Ng7 {[%clk 0:01:39.9]} 26. Bc2 {[%clk 0:00:16.3]} 26... Bxc2 {[%clk
0:01:38.7]} 27. Qxc2 {[%clk 0:00:16.6]} 27... Nf8 {[%clk 0:01:35.8]} 28. Kg2
{[%clk 0:00:12.2]} 28... Ng6 {[%clk 0:01:34.3]} 29. Bh2 {[%clk 0:00:10.5]} 29...
Nf5 {[%clk 0:01:34.7]} 30. Kh3 {[%clk 0:00:10.8]} 30... Rdg8 {[%clk 0:01:28.9]}
31. Rg1 {[%clk 0:00:10.7]} 31... Qd8 {[%clk 0:01:26.4]} 32. Raf1 {[%clk
0:00:06.8]} 32... Ne3 {[%clk 0:01:18.3]} 33. Qe2 {[%clk 0:00:06.5]} 33... Nxf1
{[%clk 0:01:06.4]} 34. Qxf1 {[%clk 0:00:06.3]} 34... Qd7 {[%clk 0:01:03.5]} 35.
Qe2 {[%clk 0:00:05.7]} 35... Qxa4 {[%clk 0:01:02.2]} 36. Qe3 {[%clk 0:00:05.5]}
36... Qd7 {[%clk 0:01:00]} 37. Nd2 {[%clk 0:00:05.1]} 37... Ra8 {[%clk
0:00:59.3]} 38. Nf1 {[%clk 0:00:04.3]} 38... a5 {[%clk 0:00:57.2]} 39. bxa5
{[%clk 0:00:04.6]} 39... bxa5 {[%clk 0:00:58.1]} 40. Ng3 {[%clk 0:00:05]} 40...
a4 {[%clk 0:00:55.2]} 41. Ra1 {[%clk 0:00:04.9]} 41... a3 {[%clk 0:00:54.8]} 42.
Qf3 {[%clk 0:00:04.8]} 42... Bd8 {[%clk 0:00:49.6]} 43. Nxh5 {[%clk 0:00:04.8]}
43... Bxg5 {[%clk 0:00:34.9]} 44. Bg3 {[%clk 0:00:03.1]} 44... Bxh4 {[%clk
0:00:29.4]} 45. Bxh4 {[%clk 0:00:03.1]} 45... Rxh5 {[%clk 0:00:28.6]} 46. Qxh5
{[%clk 0:00:02.5]} 46... Nf4+ {[%clk 0:00:28.8]} 47. Kg4 {[%clk 0:00:02.4]}
47... Nxh5 {[%clk 0:00:29.7]} 48. Kxh5 {[%clk 0:00:03]} 48... a2 {[%clk
0:00:28.5]} 49. Bf6 {[%clk 0:00:02.3]} 49... Qb5 {[%clk 0:00:26.6]} 0-1

[Event "Early-Titled-Tuesday-Blitz-January-30-2024"]
[Site "Chess.com"]
[Date "2024.01.30"]
[Round "4"]
[White "KIEV-1"]
[Black "MKlose11"]
[Result "0-1"]
[WhiteElo "2247"]
[BlackElo "2647"]
[TimeControl "180+1"]
[EndTime "8:41:19 PST"]
[Termination "MKlose11 won by resignation"]

1. e4 {[%clk 0:03:00.9]} 1... e6 {[%clk 0:02:59.9]} 2. d4 {[%clk 0:03:01]} 2...
d5 {[%clk 0:03:00.8]} 3. Nc3 {[%clk 0:03:01.5]} 3... Bb4 {[%clk 0:03:00.2]} 4.
a3 {[%clk 0:03:01.8]} 4... Bxc3+ {[%clk 0:02:57.5]} 5. bxc3 {[%clk 0:03:02.7]}
5... dxe4 {[%clk 0:02:58]} 6. Qg4 {[%clk 0:03:03.3]} 6... Nf6 {[%clk 0:02:58.3]}
7. Qxg7 {[%clk 0:03:04]} 7... Rg8 {[%clk 0:02:59]} 8. Qh6 {[%clk 0:03:04.8]}
8... Rg6 {[%clk 0:02:59.7]} 9. Qh4 {[%clk 0:03:05.2]} 9... b6 {[%clk 0:02:59.8]}
10. Bg5 {[%clk 0:03:02.8]} 10... Bb7 {[%clk 0:02:56.2]} 11. Ne2 {[%clk
0:03:02.3]} 11... h6 {[%clk 0:02:34.1]} 12. Bxh6 {[%clk 0:03:02.2]} 12... Nd5
{[%clk 0:02:34.3]} 13. Qxd8+ {[%clk 0:03:00]} 13... Kxd8 {[%clk 0:02:34.7]} 14.
Bd2 {[%clk 0:03:00.1]} 14... Nd7 {[%clk 0:02:30.7]} 15. Nf4 {[%clk 0:02:54.2]}
15... Nxf4 {[%clk 0:02:29.4]} 16. Bxf4 {[%clk 0:02:54.3]} 16... Nf6 {[%clk
0:02:27.4]} 17. Be3 {[%clk 0:02:51.6]} 17... Kd7 {[%clk 0:02:23.1]} 18. c4
{[%clk 0:02:43.2]} 18... Rh8 {[%clk 0:02:13.7]} 19. h4 {[%clk 0:02:04.5]} 19...
Ng4 {[%clk 0:02:10.1]} 20. Kd2 {[%clk 0:02:00.2]} 20... f5 {[%clk 0:02:05.7]}
21. g3 {[%clk 0:01:31.3]} 21... Nxf2 {[%clk 0:01:57.5]} 22. Rg1 {[%clk
0:00:56.4]} 22... Ng4 {[%clk 0:01:55.2]} 23. Be2 {[%clk 0:00:56.5]} 23... Nxe3
{[%clk 0:01:36.9]} 24. Kxe3 {[%clk 0:00:57.4]} 24... Rhg8 {[%clk 0:01:37.4]} 25.
Kf4 {[%clk 0:00:56.7]} 25... Ke7 {[%clk 0:01:31.3]} 26. a4 {[%clk 0:00:48.1]}
26... Rd8 {[%clk 0:01:23.2]} 27. c3 {[%clk 0:00:47.6]} 27... c5 {[%clk
0:01:22.9]} 28. Rad1 {[%clk 0:00:40.5]} 28... Kf6 {[%clk 0:01:19.3]} 29. dxc5
{[%clk 0:00:26.5]} 29... Rxd1 {[%clk 0:01:17.8]} 30. Rxd1 {[%clk 0:00:26]} 30...
e5+ {[%clk 0:01:09.3]} 31. Ke3 {[%clk 0:00:22.1]} 31... Rxg3+ {[%clk 0:01:09.6]}
32. Kf2 {[%clk 0:00:22]} 32... Rxc3 {[%clk 0:01:09.4]} 33. cxb6 {[%clk
0:00:15.8]} 33... e3+ {[%clk 0:01:05.9]} 34. Ke1 {[%clk 0:00:10.3]} 34... axb6
{[%clk 0:01:05.4]} 35. Rd6+ {[%clk 0:00:09.3]} 35... Ke7 {[%clk 0:01:03.2]} 36.
Rd3 {[%clk 0:00:08.2]} 36... Rc1+ {[%clk 0:00:48.4]} 37. Rd1 {[%clk 0:00:07.2]}
37... Rxd1+ {[%clk 0:00:26.1]} 38. Kxd1 {[%clk 0:00:07.8]} 38... f4 {[%clk
0:00:26.6]} 39. c5 {[%clk 0:00:06.9]} 39... bxc5 {[%clk 0:00:25.3]} 40. a5
{[%clk 0:00:07.3]} 40... f3 {[%clk 0:00:25.7]} 41. Bd3 {[%clk 0:00:06.5]} 41...
f2 {[%clk 0:00:25.2]} 42. Ke2 {[%clk 0:00:05]} 42... Bg2 {[%clk 0:00:23.3]} 43.
Kxe3 {[%clk 0:00:05.2]} 43... f1=Q {[%clk 0:00:23.4]} 44. Bxf1 {[%clk 0:00:05]}
44... Bxf1 {[%clk 0:00:24.3]} 45. Ke4 {[%clk 0:00:05.4]} 45... Ke6 {[%clk
0:00:23.9]} 46. h5 {[%clk 0:00:06]} 46... Bg2+ {[%clk 0:00:24.2]} 47. Ke3 {[%clk
0:00:06.1]} 47... Bd5 {[%clk 0:00:24.1]} 48. h6 {[%clk 0:00:06.3]} 48... Kf6
{[%clk 0:00:24.5]} 49. a6 {[%clk 0:00:06.4]} 49... Kg6 {[%clk 0:00:23.7]} 50.
Kd3 {[%clk 0:00:06.8]} 50... Kxh6 {[%clk 0:00:23.6]} 51. a7 {[%clk 0:00:07.7]}
51... Kg5 {[%clk 0:00:22]} 0-1

[Event "Early-Titled-Tuesday-Blitz-January-30-2024"]
[Site "Chess.com"]
[Date "2024.01.30"]
[Round "4"]
[White "RantomOpening"]
[Black "GMJustin"]
[Result "0-1"]
[WhiteElo "2503"]
[BlackElo "2326"]
[TimeControl "180+1"]
[EndTime "8:41:19 PST"]
[Termination "GMJustin won by resignation"]

1. c4 {[%clk 0:02:59.2]} 1... Nf6 {[%clk 0:02:54.6]} 2. Nf3 {[%clk 0:02:59.4]}
2... a6 {[%clk 0:02:44.2]} 3. Nc3 {[%clk 0:02:59.2]} 3... c5 {[%clk 0:02:34.2]}
4. e3 {[%clk 0:02:58.7]} 4... e6 {[%clk 0:02:28.2]} 5. d4 {[%clk 0:02:58.7]}
5... d5 {[%clk 0:02:25.9]} 6. cxd5 {[%clk 0:02:52.8]} 6... exd5 {[%clk
0:02:24.4]} 7. dxc5 {[%clk 0:02:52.4]} 7... Bxc5 {[%clk 0:02:23.8]} 8. Be2
{[%clk 0:02:49.2]} 8... O-O {[%clk 0:02:22.3]} 9. O-O {[%clk 0:02:49.6]} 9...
Nc6 {[%clk 0:02:16.3]} 10. b3 {[%clk 0:02:49.6]} 10... d4 {[%clk 0:02:07.8]} 11.
exd4 {[%clk 0:02:47.2]} 11... Nxd4 {[%clk 0:02:07.7]} 12. Nxd4 {[%clk
0:02:47.2]} 12... Bxd4 {[%clk 0:02:05.6]} 13. Bb2 {[%clk 0:02:47.4]} 13... Ne4
{[%clk 0:01:57.4]} 14. Qc2 {[%clk 0:02:45.4]} 14... Bf5 {[%clk 0:01:12.2]} 15.
Nxe4 {[%clk 0:02:45]} 15... Bxb2 {[%clk 0:01:09.7]} 16. Qxb2 {[%clk 0:02:45.9]}
16... Bxe4 {[%clk 0:01:08.2]} 17. Rad1 {[%clk 0:02:41.5]} 17... Qg5 {[%clk
0:01:07.3]} 18. f3 {[%clk 0:02:36.5]} 18... Bc6 {[%clk 0:01:05.6]} 19. Qd2
{[%clk 0:02:36.4]} 19... Qxd2 {[%clk 0:01:03.1]} 20. Rxd2 {[%clk 0:02:37.3]}
20... Rfd8 {[%clk 0:01:02.5]} 21. Rfd1 {[%clk 0:02:37.6]} 21... Rxd2 {[%clk
0:01:02.3]} 22. Rxd2 {[%clk 0:02:38.5]} 22... Kf8 {[%clk 0:01:02.6]} 23. Kf2
{[%clk 0:02:38.9]} 23... Ke7 {[%clk 0:01:02.4]} 24. Bc4 {[%clk 0:02:38.7]} 24...
f6 {[%clk 0:00:55.3]} 25. Bd3 {[%clk 0:02:36.2]} 25... Rd8 {[%clk 0:00:49.1]}
26. Re2+ {[%clk 0:02:35.8]} 26... Kf7 {[%clk 0:00:49.2]} 27. Bc4+ {[%clk
0:02:36.2]} 27... Kf8 {[%clk 0:00:48.7]} 28. Rc2 {[%clk 0:02:14.1]} 28... a5
{[%clk 0:00:45.2]} 29. Ke3 {[%clk 0:02:06.6]} 29... Ke7 {[%clk 0:00:43.4]} 30.
Bd3 {[%clk 0:02:05.5]} 30... h6 {[%clk 0:00:40.5]} 31. Rc5 {[%clk 0:02:04.1]}
31... Rd5 {[%clk 0:00:38.1]} 32. Rc3 {[%clk 0:02:03.4]} 32... Re5+ {[%clk
0:00:37.4]} 33. Kf2 {[%clk 0:02:03.6]} 33... Kd6 {[%clk 0:00:36.6]} 34. Bc2
{[%clk 0:01:44.1]} 34... Rc5 {[%clk 0:00:35]} 35. Rd3+ {[%clk 0:01:41.7]} 35...
Ke5 {[%clk 0:00:32.7]} 36. Bd1 {[%clk 0:01:39]} 36... Rc1 {[%clk 0:00:30.7]} 37.
Rd2 {[%clk 0:01:36.1]} 37... g5 {[%clk 0:00:24]} 38. Be2 {[%clk 0:01:35.8]}
38... h5 {[%clk 0:00:22.4]} 39. Bc4 {[%clk 0:01:31.1]} 39... h4 {[%clk 0:00:21]}
40. h3 {[%clk 0:01:29.2]} 40... Ra1 {[%clk 0:00:16.8]} 41. a4 {[%clk 0:01:28.3]}
41... Rc1 {[%clk 0:00:16]} 42. Ke3 {[%clk 0:01:25.9]} 42... Rc3+ {[%clk
0:00:14.9]} 43. Kf2 {[%clk 0:01:26.3]} 43... Bxa4 {[%clk 0:00:13.1]} 44. Re2+
{[%clk 0:01:24.9]} 44... Kd4 {[%clk 0:00:10]} 45. Rd2+ {[%clk 0:01:25.4]} 45...
Kc5 {[%clk 0:00:09.8]} 46. Rd5+ {[%clk 0:01:25.7]} 46... Kb4 {[%clk 0:00:09.6]}
47. bxa4 {[%clk 0:01:20.4]} 47... Rxc4 {[%clk 0:00:09.6]} 48. Rb5+ {[%clk
0:01:20.7]} 48... Kxa4 {[%clk 0:00:09.9]} 49. Rxb7 {[%clk 0:01:21.6]} 49... Rb4
{[%clk 0:00:09.4]} 50. Rf7 {[%clk 0:01:21.2]} 50... Kb3 {[%clk 0:00:08.9]} 51.
f4 {[%clk 0:01:22.1]} 51... Rxf4+ {[%clk 0:00:08.2]} 52. Ke3 {[%clk 0:01:22.4]}
52... a4 {[%clk 0:00:08.7]} 53. Rb7+ {[%clk 0:01:23.3]} 53... Rb4 {[%clk
0:00:08.1]} 54. Rd7 {[%clk 0:01:24.1]} 54... a3 {[%clk 0:00:07.4]} 55. Kd2
{[%clk 0:01:25]} 55... a2 {[%clk 0:00:07.1]} 56. Rd3+ {[%clk 0:01:23.7]} 56...
Kb2 {[%clk 0:00:07.2]} 57. Rd4 {[%clk 0:00:59.1]} 57... Rxd4+ {[%clk 0:00:06.5]}
58. Ke3 {[%clk 0:00:59.5]} 58... Rf4 {[%clk 0:00:06.8]} 0-1

[Event "Early-Titled-Tuesday-Blitz-January-30-2024"]
[Site "Chess.com"]
[Date "2024.01.30"]
[Round "4"]
[White "Felix-Rose"]
[Black "agvega14"]
[Result "0-1"]
[WhiteElo "2363"]
[BlackElo "2159"]
[TimeControl "180+1"]
[EndTime "8:41:20 PST"]
[Termination "agvega14 won on time"]

1. e4 {[%clk 0:03:00.4]} 1... c5 {[%clk 0:02:55.1]} 2. Nf3 {[%clk 0:03:00.5]}
2... a6 {[%clk 0:02:54.3]} 3. Nc3 {[%clk 0:03:00.2]} 3... e6 {[%clk 0:02:52.8]}
4. d4 {[%clk 0:03:00.3]} 4... cxd4 {[%clk 0:02:52.8]} 5. Nxd4 {[%clk 0:03:01.2]}
5... Qc7 {[%clk 0:02:52.9]} 6. Bd3 {[%clk 0:03:00.8]} 6... Nf6 {[%clk
0:02:53.1]} 7. O-O {[%clk 0:03:00.2]} 7... Bc5 {[%clk 0:02:52.5]} 8. Nb3 {[%clk
0:02:52.4]} 8... Ba7 {[%clk 0:02:50.6]} 9. Qe2 {[%clk 0:02:52.6]} 9... d6 {[%clk
0:02:48.2]} 10. Be3 {[%clk 0:02:45.9]} 10... Nc6 {[%clk 0:02:35.1]} 11. Bxa7
{[%clk 0:02:38]} 11... Rxa7 {[%clk 0:02:36]} 12. Rad1 {[%clk 0:02:23.4]} 12...
Ra8 {[%clk 0:02:34.4]} 13. Rd2 {[%clk 0:02:21.2]} 13... O-O {[%clk 0:02:33.7]}
14. Rfd1 {[%clk 0:02:20.5]} 14... b5 {[%clk 0:02:14.5]} 15. a3 {[%clk
0:02:18.8]} 15... Bb7 {[%clk 0:02:08]} 16. h3 {[%clk 0:02:15.4]} 16... Rfd8
{[%clk 0:02:05.2]} 17. Qe3 {[%clk 0:02:13.5]} 17... d5 {[%clk 0:01:53.4]} 18.
exd5 {[%clk 0:02:05.4]} 18... Nxd5 {[%clk 0:01:53.1]} 19. Nxd5 {[%clk
0:02:02.6]} 19... Rxd5 {[%clk 0:01:54]} 20. Be4 {[%clk 0:01:39.3]} 20... Rxd2
{[%clk 0:01:53.2]} 21. Rxd2 {[%clk 0:01:38.3]} 21... Nd8 {[%clk 0:00:53.9]} 22.
Bxb7 {[%clk 0:01:00.6]} 22... Nxb7 {[%clk 0:00:54.8]} 23. g3 {[%clk 0:00:42.1]}
23... Nd6 {[%clk 0:00:33.7]} 24. Qf3 {[%clk 0:00:23]} 24... Rc8 {[%clk
0:00:31.7]} 25. c3 {[%clk 0:00:17]} 25... Nc4 {[%clk 0:00:31]} 26. Re2 {[%clk
0:00:17.2]} 26... Rd8 {[%clk 0:00:30.6]} 27. Nd4 {[%clk 0:00:17.2]} 27... Qc5
{[%clk 0:00:25.4]} 28. Kg2 {[%clk 0:00:10.7]} 28... g6 {[%clk 0:00:24.2]} 29.
Nc6 {[%clk 0:00:10.3]} 29... Re8 {[%clk 0:00:17.5]} 30. Nb4 {[%clk 0:00:09.2]}
30... a5 {[%clk 0:00:16]} 31. Nd3 {[%clk 0:00:09.3]} 31... Qc7 {[%clk
0:00:13.5]} 32. Qe4 {[%clk 0:00:06.7]} 32... Nd6 {[%clk 0:00:09.1]} 33. Qe5
{[%clk 0:00:06.1]} 33... Qe7 {[%clk 0:00:08.4]} 34. Nf4 {[%clk 0:00:02.7]} 34...
b4 {[%clk 0:00:07.4]} 35. cxb4 {[%clk 0:00:02.4]} 35... axb4 {[%clk 0:00:07.2]}
36. axb4 {[%clk 0:00:02.9]} 36... Qb7+ {[%clk 0:00:07.9]} 37. Kh2 {[%clk
0:00:02.3]} 37... Qxb4 {[%clk 0:00:07.7]} 0-1

[Event "Early-Titled-Tuesday-Blitz-January-30-2024"]
[Site "Chess.com"]
[Date "2024.01.30"]
[Round "4"]
[White "toninhojit"]
[Black "Hongjin"]
[Result "0-1"]
[WhiteElo "2577"]
[BlackElo "2808"]
[TimeControl "180+1"]
[EndTime "8:41:23 PST"]
[Termination "Hongjin won by resignation"]

1. d4 {[%clk 0:03:00.9]} 1... Nf6 {[%clk 0:02:59.2]} 2. c4 {[%clk 0:03:01]} 2...
e6 {[%clk 0:02:59.4]} 3. Nf3 {[%clk 0:03:01.6]} 3... d5 {[%clk 0:02:59.2]} 4.
Nc3 {[%clk 0:03:01.2]} 4... a6 {[%clk 0:02:59.7]} 5. c5 {[%clk 0:03:01.1]} 5...
b6 {[%clk 0:02:59.6]} 6. cxb6 {[%clk 0:03:01]} 6... c5 {[%clk 0:03:00]} 7. dxc5
{[%clk 0:02:48.7]} 7... Bxc5 {[%clk 0:03:00.9]} 8. e3 {[%clk 0:02:49.3]} 8...
Bxb6 {[%clk 0:02:58]} 9. Bd3 {[%clk 0:02:47.4]} 9... Nbd7 {[%clk 0:02:57.5]} 10.
O-O {[%clk 0:02:48]} 10... Bb7 {[%clk 0:02:58.1]} 11. b3 {[%clk 0:02:45.3]}
11... O-O {[%clk 0:02:57.3]} 12. Bb2 {[%clk 0:02:45.9]} 12... e5 {[%clk
0:02:57.9]} 13. Bf5 {[%clk 0:02:36.7]} 13... e4 {[%clk 0:02:56.7]} 14. Ne1
{[%clk 0:02:27.3]} 14... Qe7 {[%clk 0:02:52.2]} 15. Na4 {[%clk 0:02:25.1]} 15...
Ba7 {[%clk 0:02:49.6]} 16. Rc1 {[%clk 0:02:13.3]} 16... Ne5 {[%clk 0:02:49.5]}
17. Bxe5 {[%clk 0:02:09]} 17... Qxe5 {[%clk 0:02:50.4]} 18. Bh3 {[%clk
0:02:08.9]} 18... d4 {[%clk 0:02:45.6]} 19. exd4 {[%clk 0:02:04.8]} 19... Bxd4
{[%clk 0:02:45.1]} 20. Nc2 {[%clk 0:02:05.3]} 20... Ba7 {[%clk 0:02:38.5]} 21.
Ne3 {[%clk 0:02:04.6]} 21... Rad8 {[%clk 0:02:35.5]} 22. Qe2 {[%clk 0:02:04.1]}
22... Rd3 {[%clk 0:02:33.7]} 23. Nb2 {[%clk 0:01:52.4]} 23... Rd4 {[%clk
0:02:14.5]} 24. Nbc4 {[%clk 0:01:43.3]} 24... Qg5 {[%clk 0:02:10.1]} 25. Rfd1
{[%clk 0:01:31.6]} 25... Nh5 {[%clk 0:01:50.2]} 26. Qg4 {[%clk 0:01:23.1]} 26...
Qxg4 {[%clk 0:01:44.4]} 27. Bxg4 {[%clk 0:01:24]} 27... Nf4 {[%clk 0:01:45]} 28.
Rxd4 {[%clk 0:01:19]} 28... Bxd4 {[%clk 0:01:45.9]} 29. Rd1 {[%clk 0:01:16.9]}
29... Nd3 {[%clk 0:01:42.2]} 30. Be2 {[%clk 0:01:14.8]} 30... Nf4 {[%clk
0:01:37.1]} 31. Bf1 {[%clk 0:01:10.8]} 31... Bc5 {[%clk 0:01:33.6]} 32. g3
{[%clk 0:01:09.6]} 32... Ne6 {[%clk 0:01:30.8]} 33. Nd6 {[%clk 0:01:06.9]} 33...
Ba8 {[%clk 0:01:24.3]} 34. Bc4 {[%clk 0:00:57.5]} 34... Nd4 {[%clk 0:01:16.5]}
35. Ndf5 {[%clk 0:00:54.9]} 35... Nf3+ {[%clk 0:01:07.9]} 36. Kg2 {[%clk
0:00:54.5]} 36... g6 {[%clk 0:01:05.2]} 37. Nd6 {[%clk 0:00:53.4]} 37... Kg7
{[%clk 0:00:53.5]} 38. Bxa6 {[%clk 0:00:31.4]} 38... f5 {[%clk 0:00:45]} 39. Bb7
{[%clk 0:00:24.9]} 39... Bxd6 {[%clk 0:00:40.7]} 40. Bxa8 {[%clk 0:00:22.9]}
40... Rxa8 {[%clk 0:00:41.6]} 41. Rxd6 {[%clk 0:00:22.7]} 41... Rxa2 {[%clk
0:00:42.3]} 42. b4 {[%clk 0:00:18.5]} 42... Ne1+ {[%clk 0:00:41.9]} 43. Kf1
{[%clk 0:00:17.7]} 43... Nd3 {[%clk 0:00:42.3]} 44. Kg1 {[%clk 0:00:15.4]} 44...
Nxf2 {[%clk 0:00:41.1]} 45. b5 {[%clk 0:00:15.8]} 45... Nd3 {[%clk 0:00:36.9]}
46. b6 {[%clk 0:00:14.7]} 46... Rb2 {[%clk 0:00:37.2]} 47. Rd7+ {[%clk
0:00:14.8]} 47... Kh6 {[%clk 0:00:37.2]} 48. b7 {[%clk 0:00:15.7]} 48... Nc5
{[%clk 0:00:37.1]} 49. Rc7 {[%clk 0:00:11.8]} 49... Nxb7 {[%clk 0:00:37.2]} 50.
Nc4 {[%clk 0:00:10.9]} 50... Rc2 {[%clk 0:00:34.4]} 51. Kf1 {[%clk 0:00:09.4]}
51... Na5 {[%clk 0:00:31.1]} 0-1